[Event "Titled Tuesday Blitz November 22 Late 2022"]
[White "Kleiman, Jake"]
[Black "Klenburg, Michael"]
[WhiteFideId "2020041"]
[BlackFideId "14102072"]
[WhiteElo "2619"]
[BlackElo "2405"]
[Result "0-1"]
[Round "08"]
[TimeControl "180+1"]
[Date "2022.11.23"]
[WhiteClock "0:00:08"]
[BlackClock "0:00:05"]

1. e4 {[%clk 0:03:00]}  d6 {[%clk 0:02:59]} 2. d4 {[%clk 0:03:00]}  Nf6 {[%clk 0:02:59]} 3. Nc3 {[%clk 0:03:01]}  g6 {[%clk 0:02:59]} 4. Nf3 {[%clk 0:03:01]}  Bg7 {[%clk 0:02:58]} 5. h3 {[%clk 0:03:02]}  O-O {[%clk 0:02:58]} 6. Be2 {[%clk 0:03:03]}  c6 {[%clk 0:02:57]} 7. a4 {[%clk 0:03:03]}  Qc7 {[%clk 0:02:57]} 8. Be3 {[%clk 0:03:01]}  Nbd7 {[%clk 0:02:57]} 9. O-O {[%clk 0:03:01]}  b6 {[%clk 0:02:56]} 10. Qd2 {[%clk 0:02:58]}  Bb7 {[%clk 0:02:56]} 11. Bh6 {[%clk 0:02:55]}  a6 {[%clk 0:02:55]} 12. Rfe1 {[%clk 0:02:52]}  e5 {[%clk 0:02:52]} 13. dxe5 {[%clk 0:02:47]}  dxe5 {[%clk 0:02:52]} 14. Rad1 {[%clk 0:02:42]}  b5 {[%clk 0:02:51]} 15. Qg5 {[%clk 0:02:39]}  Bxh6 {[%clk 0:02:31]} 16. Qxh6 {[%clk 0:02:37]}  Rfe8 {[%clk 0:02:31]} 17. Ng5 {[%clk 0:02:29]}  Nf8 {[%clk 0:02:29]} 18. Rd3 {[%clk 0:02:24]}  Rad8 {[%clk 0:02:19]} 19. Rf3 {[%clk 0:02:12]}  Qe7 {[%clk 0:02:10]} 20. Bd3 {[%clk 0:02:10]}  Ne6 {[%clk 0:01:35]} 21. Nxe6 {[%clk 0:02:09]}  Qxe6 {[%clk 0:01:34]} 22. Ne2 {[%clk 0:01:51]}  Nd7 {[%clk 0:01:18]} 23. Ng3 {[%clk 0:01:46]}  f6 {[%clk 0:01:04]} 24. h4 {[%clk 0:01:34]}  Qe7 {[%clk 0:00:58]} 25. h5 {[%clk 0:01:25]}  Nf8 {[%clk 0:00:58]} 26. hxg6 {[%clk 0:01:22]}  hxg6 {[%clk 0:00:58]} 27. Nh5 {[%clk 0:00:45]}  Rd6 {[%clk 0:00:53]} 28. Ree3 {[%clk 0:00:41]}  Bc8 {[%clk 0:00:41]} 29. Rg3 {[%clk 0:00:38]}  Qh7 {[%clk 0:00:39]} 30. Nxf6+ {[%clk 0:00:25]}  Rxf6 {[%clk 0:00:37]} 31. Qg5 {[%clk 0:00:25]}  Qg7 {[%clk 0:00:21]} 32. axb5 {[%clk 0:00:25]}  axb5 {[%clk 0:00:21]} 33. c4 {[%clk 0:00:25]}  Bd7 {[%clk 0:00:21]} 34. cxb5 {[%clk 0:00:24]}  cxb5 {[%clk 0:00:21]} 35. Bc2 {[%clk 0:00:24]}  Be6 {[%clk 0:00:21]} 36. Qxe5 {[%clk 0:00:23]}  Rc8 {[%clk 0:00:19]} 37. Rc3 {[%clk 0:00:19]}  Rxc3 {[%clk 0:00:18]} 38. Rxc3 {[%clk 0:00:18]}  Rf7 {[%clk 0:00:16]} 39. Qxb5 {[%clk 0:00:16]}  Qd4 {[%clk 0:00:16]} 40. Qe2 {[%clk 0:00:15]}  Qb4 {[%clk 0:00:14]} 41. Bd3 {[%clk 0:00:14]}  Rb7 {[%clk 0:00:13]} 42. Bc4 {[%clk 0:00:14]}  Qxb2 {[%clk 0:00:12]} 43. Bxe6+ {[%clk 0:00:13]}  Nxe6 {[%clk 0:00:13]} 44. Qc4 {[%clk 0:00:13]}  Kf7 {[%clk 0:00:10]} 45. Rf3+ {[%clk 0:00:12]}  Ke7 {[%clk 0:00:11]} 46. g3 {[%clk 0:00:12]}  Qb5 {[%clk 0:00:09]} 47. Qc3 {[%clk 0:00:11]}  Qh5 {[%clk 0:00:08]} 48. Qf6+ {[%clk 0:00:10]}  Kd6 {[%clk 0:00:05]} 49. Rd3+ {[%clk 0:00:10]}  Kc7 {[%clk 0:00:05]} 50. Qxe6 {[%clk 0:00:09]}  Rb1+ {[%clk 0:00:05]} 51. Kg2 {[%clk 0:00:08]}  Qh1# {[%clk 0:00:05]} 0-1


[Site "https://www.chess.com"]

[Event "Titled Tuesday Blitz November 22 Late 2022"]
[White "Maksimovic, Bojan"]
[Black "Gurevich, Dmitry"]
[WhiteFideId "14408120"]
[BlackFideId "2000407"]
[WhiteElo "2447"]
[BlackElo "2506"]
[Result "1-0"]
[Round "08"]
[TimeControl "180+1"]
[Date "2022.11.22"]
[WhiteClock "0:00:07"]
[BlackClock "0:00:02"]

1. e4 {[%clk 0:03:00]}  c5 {[%clk 0:02:59]} 2. Nf3 {[%clk 0:03:01]}  d6 {[%clk 0:02:59]} 3. d4 {[%clk 0:03:01]}  cxd4 {[%clk 0:02:59]} 4. Nxd4 {[%clk 0:03:02]}  Nf6 {[%clk 0:02:59]} 5. Nc3 {[%clk 0:03:03]}  Nc6 {[%clk 0:02:59]} 6. Bg5 {[%clk 0:03:02]}  e6 {[%clk 0:02:59]} 7. Qd2 {[%clk 0:03:03]}  Be7 {[%clk 0:02:59]} 8. O-O-O {[%clk 0:02:58]}  O-O {[%clk 0:02:59]} 9. f3 {[%clk 0:02:53]}  Nxd4 {[%clk 0:02:57]} 10. Qxd4 {[%clk 0:02:53]}  a6 {[%clk 0:02:58]} 11. h4 {[%clk 0:02:52]}  b5 {[%clk 0:02:57]} 12. g4 {[%clk 0:02:52]}  Bb7 {[%clk 0:02:56]} 13. Bd3 {[%clk 0:02:30]}  Rc8 {[%clk 0:02:54]} 14. Kb1 {[%clk 0:01:54]}  Qc7 {[%clk 0:02:50]} 15. Bc1 {[%clk 0:01:34]}  Qc5 {[%clk 0:02:48]} 16. Qxc5 {[%clk 0:01:33]}  Rxc5 {[%clk 0:02:37]} 17. Be3 {[%clk 0:01:32]}  Rc7 {[%clk 0:02:36]} 18. h5 {[%clk 0:01:33]}  h6 {[%clk 0:02:35]} 19. Rdg1 {[%clk 0:01:31]}  d5 {[%clk 0:02:30]} 20. g5 {[%clk 0:01:04]}  hxg5 {[%clk 0:02:29]} 21. Bxg5 {[%clk 0:01:03]}  dxe4 {[%clk 0:02:24]} 22. fxe4 {[%clk 0:01:03]}  b4 {[%clk 0:02:23]} 23. e5 {[%clk 0:00:31]}  Ne8 {[%clk 0:01:39]} 24. Bxe7 {[%clk 0:00:29]}  Bxh1 {[%clk 0:01:17]} 25. Bxf8 {[%clk 0:00:25]}  Kxf8 {[%clk 0:01:14]} 26. Ne2 {[%clk 0:00:17]}  Bf3 {[%clk 0:01:06]} 27. Nf4 {[%clk 0:00:18]}  Rc5 {[%clk 0:01:01]} 28. Rf1 {[%clk 0:00:18]}  Rxe5 {[%clk 0:00:57]} 29. Kc1 {[%clk 0:00:18]}  Bxh5 {[%clk 0:00:29]} 30. Bxa6 {[%clk 0:00:18]}  Rf5 {[%clk 0:00:22]} 31. Bd3 {[%clk 0:00:14]}  Re5 {[%clk 0:00:15]} 32. Nxh5 {[%clk 0:00:15]}  Rxh5 {[%clk 0:00:14]} 33. Bg6 {[%clk 0:00:15]}  Rg5 {[%clk 0:00:08]} 34. Bxf7 {[%clk 0:00:14]}  Ke7 {[%clk 0:00:06]} 35. Bxe8 {[%clk 0:00:15]}  Kxe8 {[%clk 0:00:06]} 36. Rf4 {[%clk 0:00:15]}  Rb5 {[%clk 0:00:05]} 37. c3 {[%clk 0:00:15]}  bxc3 {[%clk 0:00:04]} 38. b4 {[%clk 0:00:16]}  g5 {[%clk 0:00:03]} 39. Rg4 {[%clk 0:00:16]}  Rf5 {[%clk 0:00:02]} 40. a4 {[%clk 0:00:15]}  Rf4 {[%clk 0:00:02]} 41. Rxg5 {[%clk 0:00:07]} 1-0


[Site "https://www.chess.com"]

[Event "Titled Tuesday Blitz November 22 Late 2022"]
[White "Manelyuk, Daniil"]
[Black "Oganian, Miran"]
[WhiteFideId "44173920"]
[BlackFideId "4122488"]
[WhiteElo "2209"]
[BlackElo "2323"]
[Result "1-0"]
[Round "08"]
[TimeControl "180+1"]
[Date "2022.11.22"]
[WhiteClock "0:00:58"]
[BlackClock "0:00:26"]

1. e4 {[%clk 0:02:55]}  e6 {[%clk 0:03:00]} 2. d4 {[%clk 0:02:53]}  d5 {[%clk 0:03:00]} 3. Nd2 {[%clk 0:02:54]}  Nf6 {[%clk 0:03:00]} 4. e5 {[%clk 0:02:54]}  Nfd7 {[%clk 0:03:00]} 5. Bd3 {[%clk 0:02:55]}  c5 {[%clk 0:03:01]} 6. c3 {[%clk 0:02:55]}  Nc6 {[%clk 0:03:02]} 7. Ne2 {[%clk 0:02:55]}  cxd4 {[%clk 0:03:03]} 8. cxd4 {[%clk 0:02:55]}  f6 {[%clk 0:03:04]} 9. Nf4 {[%clk 0:02:55]}  Nxd4 {[%clk 0:03:03]} 10. Qh5+ {[%clk 0:02:55]}  Ke7 {[%clk 0:03:04]} 11. Ng6+ {[%clk 0:02:55]}  hxg6 {[%clk 0:03:04]} 12. exf6+ {[%clk 0:02:55]}  Nxf6 {[%clk 0:03:05]} 13. Qxh8 {[%clk 0:02:55]}  Kf7 {[%clk 0:03:05]} 14. Qh4 {[%clk 0:02:52]}  e5 {[%clk 0:03:05]} 15. Nf3 {[%clk 0:02:52]}  Nxf3+ {[%clk 0:03:03]} 16. gxf3 {[%clk 0:02:52]}  Bf5 {[%clk 0:03:03]} 17. Bxf5 {[%clk 0:02:52]}  gxf5 {[%clk 0:03:04]} 18. Bg5 {[%clk 0:02:52]}  Rc8 {[%clk 0:03:05]} 19. O-O {[%clk 0:02:51]}  Rc4 {[%clk 0:03:05]} 20. Qh3 {[%clk 0:02:46]}  Qc8 {[%clk 0:03:04]} 21. Rad1 {[%clk 0:02:42]}  Qe6 {[%clk 0:02:59]} 22. Rfe1 {[%clk 0:02:34]}  Be7 {[%clk 0:02:55]} 23. Re2 {[%clk 0:02:27]}  e4 {[%clk 0:02:55]} 24. Red2 {[%clk 0:02:15]}  exf3 {[%clk 0:02:51]} 25. Bxf6 {[%clk 0:02:12]}  Bxf6 {[%clk 0:02:49]} 26. Rxd5 {[%clk 0:01:46]}  Rg4+ {[%clk 0:01:18]} 27. Kh1 {[%clk 0:01:42]}  Rh4 {[%clk 0:00:42]} 28. Qxf3 {[%clk 0:01:40]}  Be5 {[%clk 0:00:42]} 29. h3 {[%clk 0:01:39]}  f4 {[%clk 0:00:40]} 30. Kg2 {[%clk 0:01:39]}  Kg8 {[%clk 0:00:36]} 31. Rd8+ {[%clk 0:01:33]}  Kh7 {[%clk 0:00:36]} 32. Qe4+ {[%clk 0:01:27]}  g6 {[%clk 0:00:30]} 33. R1d7+ {[%clk 0:01:26]}  Kh6 {[%clk 0:00:30]} 34. Rh8+ {[%clk 0:01:19]}  Kg5 {[%clk 0:00:29]} 35. Rxh4 {[%clk 0:01:18]}  Kxh4 {[%clk 0:00:29]} 36. Rh7+ {[%clk 0:01:09]}  Kg5 {[%clk 0:00:29]} 37. Rxb7 {[%clk 0:01:07]}  a5 {[%clk 0:00:25]} 38. Rb5 {[%clk 0:01:06]}  Kf6 {[%clk 0:00:26]} 39. Rxa5 {[%clk 0:00:58]}  g5 {[%clk 0:00:26]} 40. Qxe5+ {[%clk 0:00:58]}  Qxe5 {[%clk 0:00:26]} 41. Rxe5 {[%clk 0:00:58]}  Kxe5 {[%clk 0:00:27]} 42. Kf3 {[%clk 0:00:59]}  Kd4 {[%clk 0:00:26]} 43. a4 {[%clk 0:00:59]}  Kd3 {[%clk 0:00:26]} 44. a5 {[%clk 0:00:58]} 1-0


[Site "https://www.chess.com"]

[Event "Titled Tuesday Blitz November 22 Late 2022"]
[White "Mikhalsky, Vladimir"]
[Black "Lizak, Peter"]
[WhiteFideId "14144352"]
[BlackFideId "731595"]
[WhiteElo "2271"]
[BlackElo "2420"]
[Result "1-0"]
[Round "08"]
[TimeControl "180+1"]
[Date "2022.11.23"]
[WhiteClock "0:00:37"]
[BlackClock "0:00:18"]

1. c4 {[%clk 0:03:00]}  Nf6 {[%clk 0:02:59]} 2. Nc3 {[%clk 0:03:00]}  g6 {[%clk 0:02:57]} 3. e4 {[%clk 0:02:59]}  d6 {[%clk 0:02:57]} 4. d4 {[%clk 0:03:00]}  Bg7 {[%clk 0:02:57]} 5. f3 {[%clk 0:02:58]}  O-O {[%clk 0:02:57]} 6. Be3 {[%clk 0:02:59]}  a5 {[%clk 0:02:51]} 7. Qd2 {[%clk 0:02:58]}  a4 {[%clk 0:02:49]} 8. Bh6 {[%clk 0:02:55]}  a3 {[%clk 0:02:49]} 9. b3 {[%clk 0:02:50]}  e5 {[%clk 0:02:49]} 10. Bxg7 {[%clk 0:02:45]}  Kxg7 {[%clk 0:02:49]} 11. d5 {[%clk 0:02:37]}  Nfd7 {[%clk 0:02:44]} 12. h4 {[%clk 0:02:32]}  h6 {[%clk 0:02:29]} 13. h5 {[%clk 0:02:16]}  Qg5 {[%clk 0:02:29]} 14. Qxg5 {[%clk 0:02:11]}  hxg5 {[%clk 0:02:28]} 15. Nge2 {[%clk 0:02:04]}  Na6 {[%clk 0:02:24]} 16. Ng3 {[%clk 0:02:00]}  Nb4 {[%clk 0:02:23]} 17. O-O-O {[%clk 0:01:58]}  Nc5 {[%clk 0:02:23]} 18. Kb1 {[%clk 0:01:55]}  Bd7 {[%clk 0:02:21]} 19. Nb5 {[%clk 0:01:52]}  Bxb5 {[%clk 0:02:20]} 20. cxb5 {[%clk 0:01:52]}  Rh8 {[%clk 0:02:19]} 21. Be2 {[%clk 0:01:48]}  Rh6 {[%clk 0:01:51]} 22. Rc1 {[%clk 0:01:46]}  Ra5 {[%clk 0:01:40]} 23. Rc3 {[%clk 0:01:38]}  gxh5 {[%clk 0:01:33]} 24. Nf5+ {[%clk 0:01:36]}  Kg6 {[%clk 0:01:33]} 25. Nxh6 {[%clk 0:01:36]}  Kxh6 {[%clk 0:01:33]} 26. Rhc1 {[%clk 0:01:23]}  b6 {[%clk 0:01:27]} 27. Rh1 {[%clk 0:01:15]}  Kg6 {[%clk 0:01:24]} 28. Bc4 {[%clk 0:01:13]}  h4 {[%clk 0:01:21]} 29. Be2 {[%clk 0:01:11]}  f6 {[%clk 0:01:15]} 30. Bf1 {[%clk 0:01:10]}  f5 {[%clk 0:01:11]} 31. exf5+ {[%clk 0:01:08]}  Kxf5 {[%clk 0:01:11]} 32. Bc4 {[%clk 0:01:08]}  Kf4 {[%clk 0:01:10]} 33. Re1 {[%clk 0:01:00]}  Kg3 {[%clk 0:01:07]} 34. Re2 {[%clk 0:00:55]}  Ra8 {[%clk 0:01:00]} 35. Rd2 {[%clk 0:00:54]}  Kf4 {[%clk 0:00:56]} 36. Bf1 {[%clk 0:00:52]}  Kg3 {[%clk 0:00:42]} 37. Rc4 {[%clk 0:00:52]}  Nxb3 {[%clk 0:00:30]} 38. axb3 {[%clk 0:00:52]}  a2+ {[%clk 0:00:31]} 39. Ka1 {[%clk 0:00:51]}  e4 {[%clk 0:00:21]} 40. Rxb4 {[%clk 0:00:50]}  exf3 {[%clk 0:00:18]} 41. gxf3 {[%clk 0:00:49]}  h3 {[%clk 0:00:19]} 42. Rg4+ {[%clk 0:00:47]}  Kxf3 {[%clk 0:00:19]} 43. Bxh3 {[%clk 0:00:47]}  Rh8 {[%clk 0:00:20]} 44. Rd3+ {[%clk 0:00:43]}  Ke2 {[%clk 0:00:19]} 45. Rdg3 {[%clk 0:00:42]}  c5 {[%clk 0:00:19]} 46. dxc6 {[%clk 0:00:41]}  d5 {[%clk 0:00:19]} 47. Kxa2 {[%clk 0:00:41]}  d4 {[%clk 0:00:19]} 48. Rxd4 {[%clk 0:00:39]}  Ra8+ {[%clk 0:00:17]} 49. Ra4 {[%clk 0:00:39]}  g4 {[%clk 0:00:17]} 50. Rxa8 {[%clk 0:00:37]}  gxh3 {[%clk 0:00:18]} 51. Rxh3 {[%clk 0:00:37]} 1-0


[Site "https://www.chess.com"]

[Event "Titled Tuesday Blitz November 22 Late 2022"]
[White "Musovic, Armin"]
[Black "Dudzinski, Pawel"]
[WhiteFideId "939935"]
[BlackFideId "1117890"]
[WhiteElo "2288"]
[BlackElo "2086"]
[Result "1/2-1/2"]
[Round "08"]
[TimeControl "180+1"]
[Date "2022.11.23"]
[WhiteClock "0:00:06"]
[BlackClock "0:00:02"]

1. a3 {[%clk 0:02:01]}  a5 {[%clk 0:02:56]} 2. Nc3 {[%clk 0:02:02]}  g6 {[%clk 0:02:55]} 3. e4 {[%clk 0:01:58]}  Bg7 {[%clk 0:02:55]} 4. Bc4 {[%clk 0:01:54]}  Nc6 {[%clk 0:02:45]} 5. d3 {[%clk 0:01:53]}  e5 {[%clk 0:02:45]} 6. h4 {[%clk 0:01:52]}  h6 {[%clk 0:02:45]} 7. Nge2 {[%clk 0:01:49]}  Nge7 {[%clk 0:02:44]} 8. h5 {[%clk 0:01:49]}  g5 {[%clk 0:02:43]} 9. g4 {[%clk 0:01:47]}  Nd4 {[%clk 0:02:38]} 10. Nxd4 {[%clk 0:01:45]}  exd4 {[%clk 0:02:39]} 11. Ne2 {[%clk 0:01:46]}  d5 {[%clk 0:02:36]} 12. exd5 {[%clk 0:01:42]}  Bxg4 {[%clk 0:02:37]} 13. c3 {[%clk 0:01:31]}  Bxe2 {[%clk 0:02:27]} 14. Qxe2 {[%clk 0:01:29]}  dxc3 {[%clk 0:02:25]} 15. O-O {[%clk 0:01:29]}  cxb2 {[%clk 0:02:16]} 16. Bxb2 {[%clk 0:01:28]}  Bxb2 {[%clk 0:02:10]} 17. Qxb2 {[%clk 0:01:29]}  O-O {[%clk 0:02:10]} 18. Qf6 {[%clk 0:01:24]}  Qd6 {[%clk 0:02:07]} 19. Qxd6 {[%clk 0:01:19]}  cxd6 {[%clk 0:02:08]} 20. Rab1 {[%clk 0:01:20]}  Rab8 {[%clk 0:02:05]} 21. f4 {[%clk 0:01:15]}  b5 {[%clk 0:01:33]} 22. Rxb5 {[%clk 0:00:50]}  Rxb5 {[%clk 0:01:30]} 23. Bxb5 {[%clk 0:00:51]}  f6 {[%clk 0:01:26]} 24. Re1 {[%clk 0:00:48]}  Kf7 {[%clk 0:01:21]} 25. Bd7 {[%clk 0:00:48]}  Rb8 {[%clk 0:01:12]} 26. Be6+ {[%clk 0:00:46]}  Kg7 {[%clk 0:01:08]} 27. Rc1 {[%clk 0:00:45]}  f5 {[%clk 0:00:49]} 28. fxg5 {[%clk 0:00:42]}  hxg5 {[%clk 0:00:50]} 29. Rc7 {[%clk 0:00:37]}  Kf6 {[%clk 0:00:50]} 30. Rd7 {[%clk 0:00:38]}  Rh8 {[%clk 0:00:36]} 31. Rxd6 {[%clk 0:00:35]}  Rxh5 {[%clk 0:00:36]} 32. d4 {[%clk 0:00:27]}  Rh4 {[%clk 0:00:31]} 33. Bd7+ {[%clk 0:00:18]}  Kf7 {[%clk 0:00:29]} 34. Be6+ {[%clk 0:00:18]}  Ke8 {[%clk 0:00:28]} 35. Ra6 {[%clk 0:00:17]}  Rxd4 {[%clk 0:00:26]} 36. Ra8+ {[%clk 0:00:17]}  Nc8 {[%clk 0:00:25]} 37. Rxc8+ {[%clk 0:00:18]}  Ke7 {[%clk 0:00:25]} 38. Rc7+ {[%clk 0:00:18]}  Kd6 {[%clk 0:00:25]} 39. Rd7+ {[%clk 0:00:17]}  Ke5 {[%clk 0:00:25]} 40. Rf7 {[%clk 0:00:17]}  f4 {[%clk 0:00:25]} 41. Rf5+ {[%clk 0:00:17]}  Ke4 {[%clk 0:00:25]} 42. Rxg5 {[%clk 0:00:17]}  Kf3 {[%clk 0:00:25]} 43. Bg4+ {[%clk 0:00:17]}  Kg3 {[%clk 0:00:24]} 44. Bh5+ {[%clk 0:00:15]}  Kh4 {[%clk 0:00:25]} 45. Rf5 {[%clk 0:00:14]}  Kg3 {[%clk 0:00:24]} 46. Kf1 {[%clk 0:00:14]}  Rd3 {[%clk 0:00:23]} 47. Ke2 {[%clk 0:00:13]}  Re3+ {[%clk 0:00:23]} 48. Kd2 {[%clk 0:00:13]}  Rxa3 {[%clk 0:00:23]} 49. d6 {[%clk 0:00:14]}  Ra4 {[%clk 0:00:22]} 50. Kc3 {[%clk 0:00:14]}  Ra1 {[%clk 0:00:21]} 51. Rd5 {[%clk 0:00:14]}  Rc1+ {[%clk 0:00:21]} 52. Kb2 {[%clk 0:00:14]}  Rc8 {[%clk 0:00:21]} 53. d7 {[%clk 0:00:14]}  Rd8 {[%clk 0:00:21]} 54. Be8 {[%clk 0:00:15]}  f3 {[%clk 0:00:21]} 55. Kc2 {[%clk 0:00:14]}  f2 {[%clk 0:00:21]} 56. Rd3+ {[%clk 0:00:13]}  Kg2 {[%clk 0:00:20]} 57. Rd2 {[%clk 0:00:12]}  Kg1 {[%clk 0:00:20]} 58. Rxf2 {[%clk 0:00:11]}  Kxf2 {[%clk 0:00:21]} 59. Kb3 {[%clk 0:00:12]}  Ke3 {[%clk 0:00:21]} 60. Ka4 {[%clk 0:00:13]}  Kd4 {[%clk 0:00:21]} 61. Kxa5 {[%clk 0:00:13]}  Kc5 {[%clk 0:00:22]} 62. Ka6 {[%clk 0:00:13]}  Kc6 {[%clk 0:00:21]} 63. Ka7 {[%clk 0:00:13]}  Kc7 {[%clk 0:00:22]} 64. Ka6 {[%clk 0:00:14]}  Rb8 {[%clk 0:00:18]} 65. Ka5 {[%clk 0:00:12]}  Kd6 {[%clk 0:00:15]} 66. Ka6 {[%clk 0:00:10]}  Kc7 {[%clk 0:00:14]} 67. Ka5 {[%clk 0:00:08]}  Rb2 {[%clk 0:00:13]} 68. Ka4 {[%clk 0:00:08]}  Rb1 {[%clk 0:00:12]} 69. Ka3 {[%clk 0:00:08]}  Rb8 {[%clk 0:00:13]} 70. Ka4 {[%clk 0:00:08]}  Kd6 {[%clk 0:00:13]} 71. Ka5 {[%clk 0:00:08]}  Kc7 {[%clk 0:00:10]} 72. Ka4 {[%clk 0:00:08]}  Kd6 {[%clk 0:00:05]} 73. Ka3 {[%clk 0:00:07]}  Kc5 {[%clk 0:00:05]} 74. Ka4 {[%clk 0:00:06]}  Kc4 {[%clk 0:00:02]} 75. Bf7+ {[%clk 0:00:06]}  Kc5 {[%clk 0:00:02]} 76. Be8 {[%clk 0:00:06]}  Kd6 {[%clk 0:00:02]} 1/2-1/2


[Site "https://www.chess.com"]

[Event "Titled Tuesday Blitz November 22 Late 2022"]
[White "Oro, Faustino"]
[Black "Necromon"]
[WhiteFideId "20000197"]
[WhiteElo "2066"]
[BlackElo "2490"]
[Result "1-0"]
[Round "08"]
[TimeControl "180+1"]
[Date "2022.11.23"]
[WhiteClock "0:00:41"]
[BlackClock "0:01:15"]

1. c4 {[%clk 0:03:00]}  e5 {[%clk 0:02:59]} 2. g3 {[%clk 0:02:58]}  Nf6 {[%clk 0:02:59]} 3. Bg2 {[%clk 0:02:57]}  d5 {[%clk 0:02:58]} 4. cxd5 {[%clk 0:02:56]}  Nxd5 {[%clk 0:02:58]} 5. Nc3 {[%clk 0:02:56]}  Nb6 {[%clk 0:02:57]} 6. Nf3 {[%clk 0:02:55]}  Nc6 {[%clk 0:02:56]} 7. d3 {[%clk 0:02:55]}  Be7 {[%clk 0:02:56]} 8. O-O {[%clk 0:02:55]}  O-O {[%clk 0:02:56]} 9. a3 {[%clk 0:02:56]}  Be6 {[%clk 0:02:55]} 10. b4 {[%clk 0:02:55]}  a5 {[%clk 0:02:53]} 11. b5 {[%clk 0:02:53]}  Nd4 {[%clk 0:02:53]} 12. Nxe5 {[%clk 0:02:43]}  Bf6 {[%clk 0:02:52]} 13. f4 {[%clk 0:01:27]}  Nb3 {[%clk 0:02:49]} 14. Bb2 {[%clk 0:01:27]}  Nxa1 {[%clk 0:02:49]} 15. Qxa1 {[%clk 0:01:28]}  Bxe5 {[%clk 0:02:35]} 16. fxe5 {[%clk 0:01:27]}  Qd4+ {[%clk 0:02:35]} 17. Kh1 {[%clk 0:01:26]}  Qxe5 {[%clk 0:02:29]} 18. Ne4 {[%clk 0:01:22]}  Qh5 {[%clk 0:02:19]} 19. Bxg7 {[%clk 0:01:19]}  f5 {[%clk 0:02:19]} 20. Bxf8 {[%clk 0:01:16]}  Rxf8 {[%clk 0:02:17]} 21. Nf6+ {[%clk 0:01:16]}  Rxf6 {[%clk 0:02:15]} 22. Qxf6 {[%clk 0:01:17]}  Qxe2 {[%clk 0:02:15]} 23. Qd8+ {[%clk 0:01:17]}  Kf7 {[%clk 0:02:14]} 24. Qxc7+ {[%clk 0:01:17]}  Nd7 {[%clk 0:02:15]} 25. Qxb7 {[%clk 0:01:12]}  Qxd3 {[%clk 0:02:13]} 26. Qc6 {[%clk 0:01:02]}  Ne5 {[%clk 0:01:59]} 27. Qc7+ {[%clk 0:01:01]}  Kf6 {[%clk 0:01:58]} 28. b6 {[%clk 0:00:55]}  Ng4 {[%clk 0:01:27]} 29. b7 {[%clk 0:00:44]}  Bd5 {[%clk 0:01:17]} 30. Qd8+ {[%clk 0:00:42]}  Kg6 {[%clk 0:01:15]} 31. Qxd5 {[%clk 0:00:41]} 1-0


[Site "https://www.chess.com"]

[Event "Titled Tuesday Blitz November 22 Late 2022"]
[White "Papasimakopoulos, Alexandros"]
[Black "Petrovic, Aleksa"]
[WhiteFideId "4244125"]
[BlackFideId "967629"]
[WhiteElo "2365"]
[BlackElo "2224"]
[Result "1-0"]
[Round "08"]
[TimeControl "180+1"]
[Date "2022.11.23"]
[WhiteClock "0:00:15"]
[BlackClock "0:00:02"]

1. d4 {[%clk 0:02:47]}  e6 {[%clk 0:02:59]} 2. c4 {[%clk 0:02:47]}  Nf6 {[%clk 0:03:00]} 3. Nc3 {[%clk 0:02:46]}  Bb4 {[%clk 0:03:00]} 4. Qc2 {[%clk 0:02:47]}  O-O {[%clk 0:03:01]} 5. a3 {[%clk 0:02:47]}  Bxc3+ {[%clk 0:03:01]} 6. Qxc3 {[%clk 0:02:48]}  b5 {[%clk 0:03:02]} 7. cxb5 {[%clk 0:02:48]}  c6 {[%clk 0:03:02]} 8. Bg5 {[%clk 0:02:45]}  cxb5 {[%clk 0:03:02]} 9. e3 {[%clk 0:02:45]}  Bb7 {[%clk 0:03:02]} 10. Nf3 {[%clk 0:02:45]}  a6 {[%clk 0:02:59]} 11. Be2 {[%clk 0:02:45]}  Ne4 {[%clk 0:02:54]} 12. Bxd8 {[%clk 0:02:38]}  Nxc3 {[%clk 0:02:55]} 13. Be7 {[%clk 0:02:28]}  Re8 {[%clk 0:02:52]} 14. Bd6 {[%clk 0:02:18]}  Ne4 {[%clk 0:02:40]} 15. Bf4 {[%clk 0:02:18]}  Nc6 {[%clk 0:02:31]} 16. O-O {[%clk 0:01:57]}  Ne7 {[%clk 0:02:29]} 17. Bd3 {[%clk 0:01:49]}  Rec8 {[%clk 0:02:14]} 18. Rfc1 {[%clk 0:01:46]}  Ng6 {[%clk 0:02:04]} 19. Bc7 {[%clk 0:01:42]}  Ne7 {[%clk 0:01:55]} 20. h3 {[%clk 0:01:34]}  Nf6 {[%clk 0:01:45]} 21. Bd6 {[%clk 0:01:31]}  Nf5 {[%clk 0:01:38]} 22. Bxf5 {[%clk 0:01:24]}  exf5 {[%clk 0:01:39]} 23. Ne5 {[%clk 0:01:22]}  Ne4 {[%clk 0:01:25]} 24. Bc7 {[%clk 0:01:15]}  d6 {[%clk 0:01:17]} 25. Nd7 {[%clk 0:01:13]}  Nd2 {[%clk 0:00:51]} 26. Rc3 {[%clk 0:00:53]}  Ne4 {[%clk 0:00:40]} 27. Rc2 {[%clk 0:00:50]}  Nf6 {[%clk 0:00:28]} 28. Nb6 {[%clk 0:00:49]}  Be4 {[%clk 0:00:26]} 29. Rcc1 {[%clk 0:00:46]}  Nd5 {[%clk 0:00:21]} 30. Nxa8 {[%clk 0:00:43]}  Rxa8 {[%clk 0:00:20]} 31. Bxd6 {[%clk 0:00:44]}  f6 {[%clk 0:00:19]} 32. Rc5 {[%clk 0:00:37]}  Kf7 {[%clk 0:00:18]} 33. Rac1 {[%clk 0:00:36]}  Ke6 {[%clk 0:00:18]} 34. Bh2 {[%clk 0:00:37]}  Ne7 {[%clk 0:00:13]} 35. f3 {[%clk 0:00:36]}  Bd5 {[%clk 0:00:13]} 36. Kf2 {[%clk 0:00:35]}  g5 {[%clk 0:00:12]} 37. Rc7 {[%clk 0:00:34]}  Ng6 {[%clk 0:00:10]} 38. Rxh7 {[%clk 0:00:32]}  Re8 {[%clk 0:00:10]} 39. Rcc7 {[%clk 0:00:31]}  g4 {[%clk 0:00:07]} 40. h4 {[%clk 0:00:27]}  gxf3 {[%clk 0:00:07]} 41. gxf3 {[%clk 0:00:27]}  Bc4 {[%clk 0:00:05]} 42. h5 {[%clk 0:00:26]}  Ne7 {[%clk 0:00:04]} 43. h6 {[%clk 0:00:21]}  f4 {[%clk 0:00:04]} 44. Bxf4 {[%clk 0:00:20]}  Nd5 {[%clk 0:00:04]} 45. Rc6+ {[%clk 0:00:20]}  Kf5 {[%clk 0:00:04]} 46. Rg7 {[%clk 0:00:14]}  Nxf4 {[%clk 0:00:03]} 47. exf4 {[%clk 0:00:15]}  Re2+ {[%clk 0:00:03]} 48. Kg3 {[%clk 0:00:15]}  Re1 {[%clk 0:00:02]} 49. h7 {[%clk 0:00:15]}  Rg1+ {[%clk 0:00:02]} 50. Kh2 {[%clk 0:00:15]}  Rxg7 {[%clk 0:00:02]} 51. h8=Q {[%clk 0:00:15]}  Rg6 {[%clk 0:00:02]} 52. Qh5+ {[%clk 0:00:15]} 1-0


[Site "https://www.chess.com"]